[Event "*** Titled Tuesday Blitz"]
[Site "Chess.com"]
[Date "2020.02.04"]
[Round "6"]
[White "artooon"]
[Black "Sergey85Rodchenkov"]
[Result "1/2-1/2"]
[WhiteElo "2797"]
[BlackElo "2559"]
[TimeControl "180+2"]
[EndTime "10:21:19 PST"]
[Termination "Game drawn by repetition"]

1. e4 {[%clk 0:03:01.9]} 1... c5 {[%clk 0:03:00.5]} 2. Nf3 {[%clk 0:03:02.9]}
2... e6 {[%clk 0:03:01.6]} 3. d4 {[%clk 0:03:04]} 3... cxd4 {[%clk 0:03:02.8]}
4. Nxd4 {[%clk 0:03:05.9]} 4... a6 {[%clk 0:03:04.5]} 5. c4 {[%clk 0:03:07]}
5... Qc7 {[%clk 0:03:04]} 6. Nc3 {[%clk 0:03:07.8]} 6... b6 {[%clk 0:03:04.2]}
7. Be2 {[%clk 0:03:08]} 7... Bb7 {[%clk 0:03:05.3]} 8. Be3 {[%clk 0:03:09.5]}
8... Nf6 {[%clk 0:03:05.6]} 9. f3 {[%clk 0:03:10.9]} 9... Nc6 {[%clk 0:03:06.9]}
10. Rc1 {[%clk 0:03:11.6]} 10... Nxd4 {[%clk 0:03:05.9]} 11. Bxd4 {[%clk
0:03:13.5]} 11... Bd6 {[%clk 0:03:07.2]} 12. g3 {[%clk 0:03:11.8]} 12... h5
{[%clk 0:03:07.1]} 13. Kd2 {[%clk 0:03:12]} 13... h4 {[%clk 0:02:53.2]} 14. Kc2
{[%clk 0:03:09.1]} 14... Be5 {[%clk 0:02:40.6]} 15. Be3 {[%clk 0:02:54.4]} 15...
Bxc3 {[%clk 0:02:27]} 16. Kxc3 {[%clk 0:02:45.1]} 16... d5 {[%clk 0:02:07.4]}
17. exd5 {[%clk 0:02:39.4]} 17... Nxd5+ {[%clk 0:02:05.3]} 18. Kd2 {[%clk
0:02:35.9]} 18... Nxe3 {[%clk 0:01:59.7]} 19. Kxe3 {[%clk 0:02:37.8]} 19... Rd8
{[%clk 0:02:01.1]} 20. Qa4+ {[%clk 0:02:36.9]} 20... b5 {[%clk 0:01:59.8]} 21.
Qa3 {[%clk 0:02:21.7]} 21... b4 {[%clk 0:01:13.7]} 22. Qxb4 {[%clk 0:02:15.3]}
22... Qe5+ {[%clk 0:01:11.6]} 23. Kf2 {[%clk 0:02:15]} 23... Qd4+ {[%clk
0:01:06.8]} 24. Kg2 {[%clk 0:01:56.2]} 24... Qe3 {[%clk 0:01:01]} 25. Qa4+
{[%clk 0:00:58.3]} 25... Rd7 {[%clk 0:00:54.1]} 26. Rce1 {[%clk 0:00:43]} 26...
hxg3 {[%clk 0:00:45.3]} 27. hxg3 {[%clk 0:00:20.5]} 27... Rxh1 {[%clk
0:00:44.7]} 28. Kxh1 {[%clk 0:00:22.4]} 28... Bxf3+ {[%clk 0:00:38.6]} 29. Bxf3
{[%clk 0:00:24.3]} 29... Qxe1+ {[%clk 0:00:34.9]} 30. Kh2 {[%clk 0:00:25.6]}
30... Ke7 {[%clk 0:00:28.9]} 31. Qa3+ {[%clk 0:00:25.6]} 31... Kf6 {[%clk
0:00:28.3]} 32. Bg2 {[%clk 0:00:23.9]} 32... Rd8 {[%clk 0:00:27.5]} 33. Qf3+
{[%clk 0:00:22.4]} 33... Ke7 {[%clk 0:00:22]} 34. Qb7+ {[%clk 0:00:20.8]} 34...
Kf6 {[%clk 0:00:23]} 35. Qf3+ {[%clk 0:00:21.4]} 35... Ke7 {[%clk 0:00:21.1]}
36. Qa3+ {[%clk 0:00:22.3]} 36... Kf6 {[%clk 0:00:20]} 37. Qf3+ {[%clk
0:00:21.8]} 1/2-1/2

[Event "*** Titled Tuesday Blitz"]
[Site "Chess.com"]
[Date "2020.02.04"]
[Round "6"]
[White "sganerdene"]
[Black "Harry_Rakkel"]
[Result "1-0"]
[WhiteElo "2736"]
[BlackElo "2535"]
[TimeControl "180+2"]
[EndTime "10:21:28 PST"]
[Termination "sganerdene won on time"]

1. e4 {[%clk 0:03:01.9]} 1... c5 {[%clk 0:02:57.8]} 2. Nf3 {[%clk 0:03:03]} 2...
d6 {[%clk 0:02:58.9]} 3. d4 {[%clk 0:03:04.1]} 3... cxd4 {[%clk 0:03:00.1]} 4.
Nxd4 {[%clk 0:03:05.7]} 4... Nf6 {[%clk 0:03:01.2]} 5. Nc3 {[%clk 0:03:06.4]}
5... a6 {[%clk 0:03:02.3]} 6. Be3 {[%clk 0:03:07.9]} 6... e6 {[%clk 0:03:02.5]}
7. g4 {[%clk 0:03:05]} 7... e5 {[%clk 0:02:51.9]} 8. Nf5 {[%clk 0:03:04.3]} 8...
g6 {[%clk 0:02:52.7]} 9. Nh6 {[%clk 0:02:29]} 9... Bxh6 {[%clk 0:02:48.2]} 10.
Bxh6 {[%clk 0:02:30.4]} 10... Bxg4 {[%clk 0:02:43.8]} 11. f3 {[%clk 0:02:30.2]}
11... Be6 {[%clk 0:02:31.7]} 12. Bg5 {[%clk 0:02:08.7]} 12... h6 {[%clk
0:02:24.1]} 13. Bh4 {[%clk 0:02:07.1]} 13... Nc6 {[%clk 0:02:17.3]} 14. Be2
{[%clk 0:01:59.7]} 14... g5 {[%clk 0:02:08.7]} 15. Bf2 {[%clk 0:02:00.3]} 15...
Nh5 {[%clk 0:01:49.1]} 16. h4 {[%clk 0:01:56.1]} 16... gxh4 {[%clk 0:01:34.2]}
17. Bxh4 {[%clk 0:01:41.1]} 17... Qc7 {[%clk 0:01:24.2]} 18. Qd2 {[%clk
0:01:31.6]} 18... Nd4 {[%clk 0:01:10.2]} 19. O-O-O {[%clk 0:01:31.6]} 19... Nf4
{[%clk 0:01:07.6]} 20. Bf6 {[%clk 0:01:26.7]} 20... Rg8 {[%clk 0:01:04.9]} 21.
Bf1 {[%clk 0:01:25.3]} 21... Rg6 {[%clk 0:00:59.8]} 22. Bh4 {[%clk 0:01:15.3]}
22... Nxf3 {[%clk 0:00:49.3]} 23. Qf2 {[%clk 0:01:12.7]} 23... Nxh4 {[%clk
0:00:46.9]} 24. Qxh4 {[%clk 0:01:13.7]} 24... Rc8 {[%clk 0:00:45]} 25. Rd2
{[%clk 0:01:11.8]} 25... b5 {[%clk 0:00:41]} 26. Bxb5+ {[%clk 0:01:12.2]} 26...
axb5 {[%clk 0:00:31.2]} 27. Nxb5 {[%clk 0:01:12.4]} 27... Qc5 {[%clk 0:00:26.1]}
28. Nxd6+ {[%clk 0:01:11.9]} 28... Kf8 {[%clk 0:00:26.7]} 29. Nxc8 {[%clk
0:01:08.8]} 29... Bxc8 {[%clk 0:00:19.3]} 30. Qh2 {[%clk 0:00:45.1]} 30... Kg7
{[%clk 0:00:16.2]} 31. Kb1 {[%clk 0:00:38.8]} 31... Bb7 {[%clk 0:00:11.6]} 32.
Re1 {[%clk 0:00:39.7]} 32... Bxe4 {[%clk 0:00:07.1]} 33. b3 {[%clk 0:00:30.3]}
33... Bf5 {[%clk 0:00:06.6]} 34. Kb2 {[%clk 0:00:26.4]} 34... Re6 {[%clk
0:00:05.1]} 35. Qg3+ {[%clk 0:00:23.5]} 35... Bg6 {[%clk 0:00:05.6]} 36. a4
{[%clk 0:00:22.3]} 36... h5 {[%clk 0:00:03.1]} 37. Ra1 {[%clk 0:00:19.6]} 1-0

[Event "*** Titled Tuesday Blitz"]
[Site "Chess.com"]
[Date "2020.02.04"]
[Round "6"]
[White "EmmaChess"]
[Black "Leonid_Starozhilov"]
[Result "1-0"]
[WhiteElo "2488"]
[BlackElo "2688"]
[TimeControl "180+2"]
[EndTime "10:21:30 PST"]
[Termination "EmmaChess won on time"]

1. d3 {[%clk 0:03:01.9]} 1... c5 {[%clk 0:02:58.7]} 2. e4 {[%clk 0:03:02.9]}
2... Nc6 {[%clk 0:02:59.7]} 3. g3 {[%clk 0:03:04.4]} 3... h5 {[%clk 0:03:00.5]}
4. Nf3 {[%clk 0:03:03.6]} 4... e5 {[%clk 0:03:01]} 5. Bg2 {[%clk 0:03:04.3]}
5... Be7 {[%clk 0:03:00.8]} 6. h3 {[%clk 0:03:04.3]} 6... d6 {[%clk 0:03:00.4]}
7. Nc3 {[%clk 0:03:05.4]} 7... h4 {[%clk 0:02:58.3]} 8. g4 {[%clk 0:03:05.9]}
8... Nd4 {[%clk 0:02:59.6]} 9. Nxd4 {[%clk 0:03:05]} 9... cxd4 {[%clk
0:03:00.6]} 10. Nd5 {[%clk 0:03:06.9]} 10... Be6 {[%clk 0:02:48]} 11. Nxe7
{[%clk 0:03:02.8]} 11... Nxe7 {[%clk 0:02:49.3]} 12. f4 {[%clk 0:03:01.8]} 12...
f6 {[%clk 0:02:50.7]} 13. O-O {[%clk 0:03:01.4]} 13... Qb6 {[%clk 0:02:36.2]}
14. Kh1 {[%clk 0:02:54.7]} 14... O-O-O {[%clk 0:02:36.5]} 15. c3 {[%clk
0:02:48.5]} 15... Kb8 {[%clk 0:02:25]} 16. c4 {[%clk 0:02:23.7]} 16... exf4
{[%clk 0:02:09]} 17. Bxf4 {[%clk 0:02:19.7]} 17... Ng6 {[%clk 0:02:10.1]} 18.
Qd2 {[%clk 0:02:18]} 18... Nxf4 {[%clk 0:01:13]} 19. Rxf4 {[%clk 0:02:17.3]}
19... Qc5 {[%clk 0:01:04.5]} 20. b4 {[%clk 0:02:16.6]} 20... Qe5 {[%clk
0:01:03.8]} 21. a4 {[%clk 0:01:50.5]} 21... Rc8 {[%clk 0:01:04.6]} 22. a5 {[%clk
0:01:41.6]} 22... Rc7 {[%clk 0:01:03.4]} 23. Re1 {[%clk 0:01:40.6]} 23... Rhc8
{[%clk 0:01:03.5]} 24. Rf5 {[%clk 0:01:40.2]} 24... Bxf5 {[%clk 0:01:03]} 25.
exf5 {[%clk 0:01:41.4]} 25... Qg3 {[%clk 0:01:04.3]} 26. a6 {[%clk 0:01:29.3]}
26... Rd8 {[%clk 0:00:14.8]} 27. Re4 {[%clk 0:01:12.4]} 27... bxa6 {[%clk
0:00:13.6]} 28. Rxd4 {[%clk 0:01:11.9]} 28... d5 {[%clk 0:00:13]} 29. Qe2 {[%clk
0:00:52.2]} 29... Qe5 {[%clk 0:00:12.8]} 30. Qf2 {[%clk 0:00:48.9]} 30... Rcd7
{[%clk 0:00:10]} 31. Bxd5 {[%clk 0:00:46.9]} 31... Rxd5 {[%clk 0:00:08.8]} 32.
cxd5 {[%clk 0:00:43.8]} 32... Rxd5 {[%clk 0:00:10.1]} 33. Re4 {[%clk 0:00:42.5]}
33... Qa1+ {[%clk 0:00:04.1]} 34. Re1 {[%clk 0:00:36.5]} 34... Qd4 {[%clk
0:00:05.3]} 35. Re8+ {[%clk 0:00:28.7]} 35... Kc7 {[%clk 0:00:05]} 36. Qc2+
{[%clk 0:00:23.6]} 36... Kd6 {[%clk 0:00:03.9]} 37. Re6+ {[%clk 0:00:22]} 1-0

[Event "*** Titled Tuesday Blitz"]
[Site "Chess.com"]
[Date "2020.02.04"]
[Round "6"]
[White "Hydrargyrum_Girl"]
[Black "LLRChess"]
[Result "0-1"]
[WhiteElo "2191"]
[BlackElo "2496"]
[TimeControl "180+2"]
[EndTime "10:21:34 PST"]
[Termination "LLRChess won by resignation"]

1. d4 {[%clk 0:02:49.1]} 1... f5 {[%clk 0:03:00.6]} 2. Nc3 {[%clk 0:02:49.1]}
2... Nf6 {[%clk 0:03:01.9]} 3. Bg5 {[%clk 0:02:48.4]} 3... d5 {[%clk 0:03:03.4]}
4. f3 {[%clk 0:02:47.8]} 4... c5 {[%clk 0:03:00.9]} 5. e4 {[%clk 0:02:33]} 5...
cxd4 {[%clk 0:02:52.2]} 6. Qxd4 {[%clk 0:02:32.4]} 6... Nc6 {[%clk 0:02:50.5]}
7. Bb5 {[%clk 0:02:32.4]} 7... dxe4 {[%clk 0:02:51.7]} 8. Qxd8+ {[%clk
0:02:08.5]} 8... Kxd8 {[%clk 0:02:53.6]} 9. O-O-O+ {[%clk 0:02:08.7]} 9... Kc7
{[%clk 0:02:47.1]} 10. Bf4+ {[%clk 0:02:05.2]} 10... e5 {[%clk 0:02:44.7]} 11.
Bg5 {[%clk 0:01:54.7]} 11... Be6 {[%clk 0:02:28.1]} 12. fxe4 {[%clk 0:01:15.3]}
12... fxe4 {[%clk 0:02:28.9]} 13. Nge2 {[%clk 0:01:14.4]} 13... Bb4 {[%clk
0:02:08.3]} 14. Rhf1 {[%clk 0:01:05.6]} 14... Rhf8 {[%clk 0:02:04.1]} 15. a3
{[%clk 0:00:55.6]} 15... Bc5 {[%clk 0:01:49.4]} 16. Ng3 {[%clk 0:00:43.5]} 16...
e3 {[%clk 0:01:45.7]} 17. Bxf6 {[%clk 0:00:40.6]} 17... gxf6 {[%clk 0:01:41.6]}
18. Nge4 {[%clk 0:00:40.7]} 18... Be7 {[%clk 0:01:40.4]} 19. Nd5+ {[%clk
0:00:19.1]} 19... Bxd5 {[%clk 0:01:38.5]} 20. Rxd5 {[%clk 0:00:21]} 20... f5
{[%clk 0:01:15.1]} 21. Bxc6 {[%clk 0:00:21.2]} 21... Kxc6 {[%clk 0:01:13.3]} 22.
Rxe5 {[%clk 0:00:21.9]} 22... fxe4 {[%clk 0:01:13.6]} 23. Re1 {[%clk 0:00:14.6]}
23... Bd6 {[%clk 0:00:59.7]} 24. Rxe4 {[%clk 0:00:14.7]} 24... Bxh2 {[%clk
0:00:52.3]} 25. Kb1 {[%clk 0:00:15.5]} 25... Bf4 {[%clk 0:00:47.5]} 26. g3
{[%clk 0:00:16.2]} 26... Bg5 {[%clk 0:00:46.9]} 27. Re6+ {[%clk 0:00:14]} 27...
Kd7 {[%clk 0:00:45.6]} 28. Re5 {[%clk 0:00:10]} 28... h6 {[%clk 0:00:46.6]} 29.
Rd1+ {[%clk 0:00:11]} 29... Kc7 {[%clk 0:00:34.4]} 30. Rc5+ {[%clk 0:00:12]}
30... Kb6 {[%clk 0:00:34.4]} 31. Rc3 {[%clk 0:00:09.4]} 31... a6 {[%clk
0:00:31.6]} 32. Rd6+ {[%clk 0:00:07]} 32... Ka7 {[%clk 0:00:31.8]} 33. Rb3
{[%clk 0:00:05.4]} 33... e2 {[%clk 0:00:26.7]} 34. Re6 {[%clk 0:00:06]} 34...
Rae8 {[%clk 0:00:26.9]} 35. Rbb6 {[%clk 0:00:05.2]} 35... Rxe6 {[%clk
0:00:24.1]} 36. Rxe6 {[%clk 0:00:07.1]} 36... Rf1+ {[%clk 0:00:25.6]} 0-1

[Event "*** Titled Tuesday Blitz"]
[Site "Chess.com"]
[Date "2020.02.04"]
[Round "6"]
[White "Gahan-MG"]
[Black "Blitzstream"]
[Result "0-1"]
[WhiteElo "2431"]
[BlackElo "2780"]
[TimeControl "180+2"]
[EndTime "10:21:41 PST"]
[Termination "Blitzstream won by resignation"]

1. e4 {[%clk 0:02:03.6]} 1... d5 {[%clk 0:03:00.9]} 2. exd5 {[%clk 0:02:02.6]}
2... Qxd5 {[%clk 0:03:02.8]} 3. Nc3 {[%clk 0:01:56.9]} 3... Qa5 {[%clk
0:03:03.9]} 4. d4 {[%clk 0:01:57.7]} 4... Nf6 {[%clk 0:03:05.1]} 5. Nf3 {[%clk
0:01:56.4]} 5... Nc6 {[%clk 0:03:06.2]} 6. h3 {[%clk 0:01:56.6]} 6... Bf5 {[%clk
0:03:06.5]} 7. Bc4 {[%clk 0:01:55.1]} 7... e6 {[%clk 0:03:06.9]} 8. O-O {[%clk
0:01:53.6]} 8... O-O-O {[%clk 0:03:08.1]} 9. Be3 {[%clk 0:01:37.7]} 9... Ne4
{[%clk 0:02:19]} 10. Nxe4 {[%clk 0:01:35.8]} 10... Bxe4 {[%clk 0:02:20.9]} 11.
c3 {[%clk 0:01:36.5]} 11... h6 {[%clk 0:02:10.5]} 12. Nd2 {[%clk 0:01:20.3]}
12... Bg6 {[%clk 0:02:04.5]} 13. Nb3 {[%clk 0:01:20.1]} 13... Qf5 {[%clk
0:02:01.2]} 14. Qe2 {[%clk 0:01:16.1]} 14... Bd6 {[%clk 0:01:56.7]} 15. Rad1
{[%clk 0:01:16.2]} 15... Qh5 {[%clk 0:01:35.8]} 16. Qxh5 {[%clk 0:01:02.7]}
16... Bxh5 {[%clk 0:01:36.7]} 17. Bb5 {[%clk 0:01:04.4]} 17... Bxd1 {[%clk
0:01:36.9]} 18. Rxd1 {[%clk 0:01:03.5]} 18... Ne7 {[%clk 0:01:36.6]} 19. Be2
{[%clk 0:00:50.5]} 19... Nf5 {[%clk 0:01:37.3]} 20. Bc1 {[%clk 0:00:49.4]} 20...
c6 {[%clk 0:01:36.7]} 21. Bd3 {[%clk 0:00:47]} 21... g6 {[%clk 0:01:35.5]} 22.
Na5 {[%clk 0:00:44.7]} 22... Bc7 {[%clk 0:01:29.4]} 23. Nb3 {[%clk 0:00:45.3]}
23... h5 {[%clk 0:01:30.1]} 24. Re1 {[%clk 0:00:45.5]} 24... Bd6 {[%clk
0:01:23.2]} 25. Bg5 {[%clk 0:00:46.4]} 25... Rde8 {[%clk 0:01:20.8]} 26. Bf6
{[%clk 0:00:46]} 26... Rhg8 {[%clk 0:01:22]} 27. Na5 {[%clk 0:00:44.2]} 27... g5
{[%clk 0:01:08.8]} 28. Nc4 {[%clk 0:00:38.1]} 28... Bc7 {[%clk 0:01:08.5]} 29.
Ne5 {[%clk 0:00:26.1]} 29... Bxe5 {[%clk 0:01:07.7]} 30. Bxe5 {[%clk 0:00:25.7]}
30... g4 {[%clk 0:01:08.7]} 31. hxg4 {[%clk 0:00:26.4]} 31... hxg4 {[%clk
0:01:08.9]} 32. g3 {[%clk 0:00:27.1]} 32... Ne7 {[%clk 0:01:05.1]} 33. Kg2
{[%clk 0:00:27.1]} 33... Nd5 {[%clk 0:01:04.1]} 34. a3 {[%clk 0:00:25.7]} 34...
f6 {[%clk 0:01:01.3]} 35. Bd6 {[%clk 0:00:27]} 35... Kd7 {[%clk 0:01:02.2]} 36.
Bc5 {[%clk 0:00:21.5]} 36... b6 {[%clk 0:01:02.6]} 37. c4 {[%clk 0:00:22.6]}
37... bxc5 {[%clk 0:01:00.2]} 38. cxd5 {[%clk 0:00:23.7]} 38... exd5 {[%clk
0:00:54.6]} 39. Bf5+ {[%clk 0:00:24.9]} 39... Kd6 {[%clk 0:00:54.6]} 40. dxc5+
{[%clk 0:00:22.8]} 40... Kxc5 {[%clk 0:00:56.5]} 41. Rc1+ {[%clk 0:00:23.6]}
41... Kd6 {[%clk 0:00:57.2]} 42. b4 {[%clk 0:00:24.3]} 42... Re2 {[%clk
0:00:52.2]} 43. Bd3 {[%clk 0:00:24.6]} 43... Rb2 {[%clk 0:00:51.3]} 44. Rc3
{[%clk 0:00:25.6]} 44... Re8 {[%clk 0:00:46.5]} 45. Ba6 {[%clk 0:00:25.5]} 45...
Re7 {[%clk 0:00:45.7]} 46. Kg1 {[%clk 0:00:12.6]} 46... Rb1+ {[%clk 0:00:46.2]}
47. Kg2 {[%clk 0:00:13.7]} 47... Ree1 {[%clk 0:00:46.7]} 0-1

[Event "*** Titled Tuesday Blitz"]
[Site "Chess.com"]
[Date "2020.02.04"]
[Round "6"]
[White "RojonR"]
[Black "Tayson_7"]
[Result "0-1"]
[WhiteElo "2429"]
[BlackElo "2659"]
[TimeControl "180+2"]
[EndTime "10:21:43 PST"]
[Termination "Tayson_7 won by checkmate"]

1. e4 {[%clk 0:03:01.9]} 1... c5 {[%clk 0:02:58.8]} 2. Nf3 {[%clk 0:03:02.3]}
2... d6 {[%clk 0:02:59.7]} 3. d4 {[%clk 0:03:03.2]} 3... cxd4 {[%clk 0:03:01.5]}
4. Qxd4 {[%clk 0:03:05.1]} 4... Nc6 {[%clk 0:03:01.7]} 5. Bb5 {[%clk 0:03:05.2]}
5... Bd7 {[%clk 0:03:03.3]} 6. Bxc6 {[%clk 0:03:06.1]} 6... Bxc6 {[%clk
0:03:05.2]} 7. Nc3 {[%clk 0:03:06.2]} 7... h6 {[%clk 0:03:06.4]} 8. O-O {[%clk
0:03:01.1]} 8... e5 {[%clk 0:03:06.7]} 9. Qd3 {[%clk 0:03:01.8]} 9... Nf6 {[%clk
0:03:07.9]} 10. Rd1 {[%clk 0:03:01.8]} 10... Be7 {[%clk 0:03:08.3]} 11. b3
{[%clk 0:02:08.8]} 11... O-O {[%clk 0:03:05]} 12. Ba3 {[%clk 0:02:09.4]} 12...
Qa5 {[%clk 0:03:03.5]} 13. Bb2 {[%clk 0:01:48.3]} 13... Rfd8 {[%clk 0:02:59.1]}
14. Nd5 {[%clk 0:01:42.9]} 14... Bxd5 {[%clk 0:02:54.6]} 15. exd5 {[%clk
0:01:44.8]} 15... e4 {[%clk 0:02:39.6]} 16. Qd2 {[%clk 0:01:45.5]} 16... Qc5
{[%clk 0:01:59.3]} 17. Nh4 {[%clk 0:01:25.8]} 17... Nxd5 {[%clk 0:01:58.9]} 18.
Nf5 {[%clk 0:01:25.6]} 18... Bf6 {[%clk 0:02:00.1]} 19. c4 {[%clk 0:01:13.7]}
19... Bxb2 {[%clk 0:01:49.8]} 20. Qxb2 {[%clk 0:01:15.6]} 20... Nf6 {[%clk
0:01:50.7]} 21. Rd5 {[%clk 0:01:04.8]} 21... Qc7 {[%clk 0:01:34.6]} 22. Rad1
{[%clk 0:00:58.3]} 22... Re8 {[%clk 0:01:16.2]} 23. Rxd6 {[%clk 0:00:37.8]}
23... Rad8 {[%clk 0:01:13.3]} 24. Nxh6+ {[%clk 0:00:30.8]} 24... Kf8 {[%clk
0:00:56.8]} 25. Nf5 {[%clk 0:00:30.1]} 25... Rxd6 {[%clk 0:00:57.8]} 26. Rxd6
{[%clk 0:00:30.3]} 26... Rd8 {[%clk 0:00:55.9]} 27. Rxd8+ {[%clk 0:00:20.5]}
27... Qxd8 {[%clk 0:00:57.8]} 28. h3 {[%clk 0:00:19.5]} 28... g6 {[%clk
0:00:47.7]} 29. Nd4 {[%clk 0:00:16.8]} 29... Nh5 {[%clk 0:00:47.2]} 30. Nb5
{[%clk 0:00:07.8]} 30... Kg8 {[%clk 0:00:45.6]} 31. Qd4 {[%clk 0:00:07.7]} 31...
Qe7 {[%clk 0:00:41.8]} 32. Qxa7 {[%clk 0:00:07.6]} 32... Nf4 {[%clk 0:00:41.8]}
33. Qe3 {[%clk 0:00:08.1]} 33... Qg5 {[%clk 0:00:40.7]} 34. g4 {[%clk
0:00:02.5]} 34... Qe5 {[%clk 0:00:39.1]} 35. Nd4 {[%clk 0:00:02]} 35... Nxh3+
{[%clk 0:00:37.9]} 36. Qxh3 {[%clk 0:00:02.4]} 36... Qxd4 {[%clk 0:00:39.5]} 37.
Qe3 {[%clk 0:00:03.3]} 37... Qa1+ {[%clk 0:00:40.6]} 38. Kh2 {[%clk 0:00:03.6]}
38... Qxa2 {[%clk 0:00:42.5]} 39. Qxe4 {[%clk 0:00:04.7]} 39... Qxf2+ {[%clk
0:00:43.7]} 40. Kh3 {[%clk 0:00:04.7]} 40... Qf1+ {[%clk 0:00:44.8]} 41. Kh4
{[%clk 0:00:05.7]} 41... Qf2+ {[%clk 0:00:44.4]} 42. Kg5 {[%clk 0:00:06.2]}
42... Kg7 {[%clk 0:00:45.5]} 43. Qe7 {[%clk 0:00:03]} 43... Qd2+ {[%clk
0:00:40.1]} 44. Kh4 {[%clk 0:00:03.6]} 44... Qh2+ {[%clk 0:00:41.1]} 45. Kg5
{[%clk 0:00:04.6]} 45... Qh6# {[%clk 0:00:43]} 0-1

[Event "*** Titled Tuesday Blitz"]
[Site "Chess.com"]
[Date "2020.02.04"]
[Round "6"]
[White "vlad_Sid"]
[Black "GMMatamoros"]
[Result "1-0"]
[WhiteElo "2698"]
[BlackElo "2434"]
[TimeControl "180+2"]
[EndTime "10:21:55 PST"]
[Termination "vlad_Sid won on time"]

1. c4 {[%clk 0:03:01.9]} 1... Nf6 {[%clk 0:02:58.5]} 2. g3 {[%clk 0:02:56.9]}
2... g6 {[%clk 0:02:59.3]} 3. Bg2 {[%clk 0:02:58.1]} 3... Bg7 {[%clk 0:03:00.9]}
4. Nc3 {[%clk 0:03:00]} 4... O-O {[%clk 0:03:02.2]} 5. d3 {[%clk 0:02:58.1]}
5... d6 {[%clk 0:02:59.7]} 6. Nf3 {[%clk 0:02:58.6]} 6... e5 {[%clk 0:02:58.5]}
7. O-O {[%clk 0:02:57.5]} 7... Re8 {[%clk 0:02:59.5]} 8. Rb1 {[%clk 0:02:57.3]}
8... a5 {[%clk 0:02:59.3]} 9. a3 {[%clk 0:02:52.9]} 9... e4 {[%clk 0:02:55.3]}
10. Nd2 {[%clk 0:02:45.3]} 10... exd3 {[%clk 0:02:47.7]} 11. exd3 {[%clk
0:02:47.2]} 11... Nc6 {[%clk 0:02:37.5]} 12. h3 {[%clk 0:02:45.1]} 12... Bf5
{[%clk 0:02:24.4]} 13. Nde4 {[%clk 0:02:45.3]} 13... Nxe4 {[%clk 0:02:25.2]} 14.
Nxe4 {[%clk 0:02:47.2]} 14... Nd4 {[%clk 0:02:13.8]} 15. Bg5 {[%clk 0:02:45.2]}
15... f6 {[%clk 0:02:03.6]} 16. Be3 {[%clk 0:02:45.9]} 16... Nc6 {[%clk
0:01:53.2]} 17. b4 {[%clk 0:02:41]} 17... axb4 {[%clk 0:01:53.7]} 18. axb4
{[%clk 0:02:42.9]} 18... Ra3 {[%clk 0:01:46.5]} 19. Rb3 {[%clk 0:02:38.2]} 19...
Qa8 {[%clk 0:01:46.6]} 20. b5 {[%clk 0:02:27.6]} 20... Ne5 {[%clk 0:01:45.3]}
21. g4 {[%clk 0:01:59.6]} 21... Be6 {[%clk 0:01:34.4]} 22. f4 {[%clk 0:01:54.8]}
22... Nd7 {[%clk 0:01:01.4]} 23. Qc2 {[%clk 0:01:35.7]} 23... Ra2 {[%clk
0:00:53.4]} 24. Qb1 {[%clk 0:01:33.8]} 24... d5 {[%clk 0:00:46.5]} 25. Nc3
{[%clk 0:00:42.4]} 25... dxc4 {[%clk 0:00:41.2]} 26. dxc4 {[%clk 0:00:44.3]}
26... Rxg2+ {[%clk 0:00:39]} 27. Kxg2 {[%clk 0:00:46.2]} 27... Bxc4 {[%clk
0:00:40.5]} 28. Rf3 {[%clk 0:00:42]} 28... Bxb3 {[%clk 0:00:33.1]} 29. Qxb3+
{[%clk 0:00:43.9]} 29... Kh8 {[%clk 0:00:34.4]} 30. Qc4 {[%clk 0:00:43.5]} 30...
Qd8 {[%clk 0:00:32.8]} 31. Nd5 {[%clk 0:00:41.9]} 31... Nb6 {[%clk 0:00:26]} 32.
Bxb6 {[%clk 0:00:40.9]} 32... cxb6 {[%clk 0:00:27.9]} 33. f5 {[%clk 0:00:39.2]}
33... Re5 {[%clk 0:00:24.4]} 34. Nf4 {[%clk 0:00:33.2]} 34... gxf5 {[%clk
0:00:21.3]} 35. Ne6 {[%clk 0:00:33.2]} 35... Qe8 {[%clk 0:00:18.3]} 36. gxf5
{[%clk 0:00:33.7]} 36... Rxb5 {[%clk 0:00:17.8]} 37. Rd3 {[%clk 0:00:23.6]}
37... Rb2+ {[%clk 0:00:13.5]} 38. Kf3 {[%clk 0:00:23.1]} 38... Bf8 {[%clk
0:00:14.2]} 39. Rd8 {[%clk 0:00:23]} 39... Qh5+ {[%clk 0:00:15]} 40. Kg3 {[%clk
0:00:20.1]} 1-0